[Event "Titled Tuesday Blitz December 20 Late 2022"]
[White "Bogaudinov, Rushan"]
[Black "Sanchez Alvares, Kelvin Antonio"]
[WhiteFideId "4129288"]
[BlackFideId "3906680"]
[WhiteElo "2028"]
[BlackElo "2217"]
[Result "1/2-1/2"]
[Round "06"]
[TimeControl "180+1"]
[Date "2022.12.21"]
[WhiteClock "0:00:09"]
[BlackClock "0:01:08"]

1. a3 {[%clk 0:03:00]}  d5 {[%clk 0:02:35]} 2. e3 {[%clk 0:02:58]}  Nf6 {[%clk 0:02:35]} 3. Nf3 {[%clk 0:02:58]}  c5 {[%clk 0:02:35]} 4. d4 {[%clk 0:02:54]}  Nc6 {[%clk 0:02:34]} 5. dxc5 {[%clk 0:02:50]}  a5 {[%clk 0:02:33]} 6. Nc3 {[%clk 0:02:45]}  Bg4 {[%clk 0:02:30]} 7. Na4 {[%clk 0:02:43]}  e6 {[%clk 0:02:28]} 8. Be2 {[%clk 0:02:42]}  Ne4 {[%clk 0:02:27]} 9. O-O {[%clk 0:02:35]}  Nxc5 {[%clk 0:02:25]} 10. Nxc5 {[%clk 0:02:30]}  Bxc5 {[%clk 0:02:26]} 11. h3 {[%clk 0:02:29]}  Bf5 {[%clk 0:02:25]} 12. Nd4 {[%clk 0:02:24]}  Nxd4 {[%clk 0:02:25]} 13. exd4 {[%clk 0:02:24]}  Bd6 {[%clk 0:02:25]} 14. Bb5+ {[%clk 0:02:23]}  Kf8 {[%clk 0:02:25]} 15. c3 {[%clk 0:02:13]}  h6 {[%clk 0:02:24]} 16. a4 {[%clk 0:02:11]}  Kg8 {[%clk 0:02:23]} 17. Bd3 {[%clk 0:02:08]}  Bxd3 {[%clk 0:02:21]} 18. Qxd3 {[%clk 0:02:09]}  g6 {[%clk 0:02:21]} 19. g3 {[%clk 0:01:55]}  Kg7 {[%clk 0:02:21]} 20. Kg2 {[%clk 0:01:55]}  Qd7 {[%clk 0:02:11]} 21. h4 {[%clk 0:01:53]}  Rhb8 {[%clk 0:02:08]} 22. h5 {[%clk 0:01:49]}  g5 {[%clk 0:02:05]} 23. f4 {[%clk 0:01:49]}  gxf4 {[%clk 0:02:02]} 24. Bxf4 {[%clk 0:01:46]}  f5 {[%clk 0:01:59]} 25. Rae1 {[%clk 0:01:34]}  Rf8 {[%clk 0:01:56]} 26. Qe3 {[%clk 0:01:33]}  Bxf4 {[%clk 0:01:55]} 27. Qxf4 {[%clk 0:01:32]}  Kh7 {[%clk 0:01:49]} 28. Qe5 {[%clk 0:01:19]}  Rae8 {[%clk 0:01:45]} 29. b3 {[%clk 0:01:17]}  Qf7 {[%clk 0:01:42]} 30. Rh1 {[%clk 0:01:13]}  Rg8 {[%clk 0:01:42]} 31. Re3 {[%clk 0:01:12]}  f4 {[%clk 0:01:35]} 32. Rf3 {[%clk 0:01:08]}  Rxg3+ {[%clk 0:01:35]} 33. Rxg3 {[%clk 0:01:08]}  fxg3 {[%clk 0:01:35]} 34. Rf1 {[%clk 0:01:04]}  Qg7 {[%clk 0:01:35]} 35. Qe3 {[%clk 0:00:44]}  e5 {[%clk 0:01:31]} 36. dxe5 {[%clk 0:00:44]}  Qxe5 {[%clk 0:01:21]} 37. Rf7+ {[%clk 0:00:34]}  Kg8 {[%clk 0:01:21]} 38. Qxe5 {[%clk 0:00:33]}  Rxe5 {[%clk 0:01:21]} 39. Rxb7 {[%clk 0:00:30]}  Re3 {[%clk 0:01:19]} 40. Rc7 {[%clk 0:00:28]}  Kf8 {[%clk 0:01:18]} 41. Rc6 {[%clk 0:00:25]}  Ke7 {[%clk 0:01:17]} 42. Rxh6 {[%clk 0:00:23]}  Rxc3 {[%clk 0:01:17]} 43. Ra6 {[%clk 0:00:20]}  Rxb3 {[%clk 0:01:16]} 44. Rxa5 {[%clk 0:00:20]}  Kd6 {[%clk 0:01:17]} 45. h6 {[%clk 0:00:19]}  Ke5 {[%clk 0:01:14]} 46. h7 {[%clk 0:00:18]}  Rb8 {[%clk 0:01:14]} 47. Kxg3 {[%clk 0:00:18]}  Rh8 {[%clk 0:01:12]} 48. Ra7 {[%clk 0:00:18]}  d4 {[%clk 0:01:12]} 49. Kg4 {[%clk 0:00:17]}  d3 {[%clk 0:01:07]} 50. Rd7 {[%clk 0:00:16]}  d2 {[%clk 0:01:07]} 51. Rxd2 {[%clk 0:00:09]}  Rxh7 {[%clk 0:01:07]} 52. Ra2 {[%clk 0:00:09]}  Kd5 {[%clk 0:01:07]} 53. a5 {[%clk 0:00:09]}  Kc6 {[%clk 0:01:07]} 54. a6 {[%clk 0:00:09]}  Ra7 {[%clk 0:01:07]} 55. Rc2+ {[%clk 0:00:09]}  Kb6 {[%clk 0:01:07]} 56. Ra2 {[%clk 0:00:09]}  Rxa6 {[%clk 0:01:07]} 57. Rxa6+ {[%clk 0:00:09]}  Kxa6 {[%clk 0:01:08]} 1/2-1/2


[Site "https://www.chess.com"]

[Event "Titled Tuesday Blitz December 20 Late 2022"]
[White "Chigaev, Maksim"]
[Black "Nakamura, Hikaru"]
[WhiteFideId "4108116"]
[BlackFideId "2016192"]
[WhiteElo "2542"]
[BlackElo "2909"]
[Result "0-1"]
[Round "06"]
[TimeControl "180+1"]
[Date "2022.12.20"]
[WhiteClock "0:00:03"]
[BlackClock "0:01:52"]

1. e4 {[%clk 0:02:54]}  c5 {[%clk 0:02:52]} 2. Nf3 {[%clk 0:02:55]}  d6 {[%clk 0:02:52]} 3. c3 {[%clk 0:02:49]}  Nf6 {[%clk 0:02:52]} 4. g3 {[%clk 0:02:49]}  Nc6 {[%clk 0:02:48]} 5. d3 {[%clk 0:02:49]}  d5 {[%clk 0:02:38]} 6. e5 {[%clk 0:02:37]}  Ng8 {[%clk 0:02:36]} 7. d4 {[%clk 0:02:27]}  Bg4 {[%clk 0:02:35]} 8. Be3 {[%clk 0:02:27]}  e6 {[%clk 0:02:29]} 9. Nbd2 {[%clk 0:02:23]}  cxd4 {[%clk 0:02:29]} 10. cxd4 {[%clk 0:02:23]}  Bb4 {[%clk 0:02:17]} 11. Be2 {[%clk 0:02:18]}  Nge7 {[%clk 0:02:09]} 12. O-O {[%clk 0:02:15]}  Nf5 {[%clk 0:02:09]} 13. a3 {[%clk 0:02:01]}  Bxd2 {[%clk 0:02:01]} 14. Qxd2 {[%clk 0:01:58]}  Qb6 {[%clk 0:02:01]} 15. Rfd1 {[%clk 0:01:48]}  O-O {[%clk 0:02:01]} 16. Ne1 {[%clk 0:00:18]}  Bxe2 {[%clk 0:01:59]} 17. Qxe2 {[%clk 0:00:19]}  Rac8 {[%clk 0:01:56]} 18. Nf3 {[%clk 0:00:17]}  Na5 {[%clk 0:01:55]} 19. Rac1 {[%clk 0:00:13]}  Nb3 {[%clk 0:01:55]} 20. Rxc8 {[%clk 0:00:06]}  Rxc8 {[%clk 0:01:56]} 21. Qd3 {[%clk 0:00:05]}  a5 {[%clk 0:01:55]} 22. h4 {[%clk 0:00:05]}  h5 {[%clk 0:01:52]} 23. Rc1 {[%clk 0:00:03]}  Nxc1 {[%clk 0:01:52]} 24. Bxc1 {[%clk 0:00:03]}  Rxc1+ {[%clk 0:01:52]} 0-1


[Site "https://www.chess.com"]

[Event "Titled Tuesday Blitz December 20 Late 2022"]
[White "D`Arruda, Ricardo D."]
[Black "Goroshkov, Maksym"]
[WhiteFideId "100692"]
[BlackFideId "14142716"]
[WhiteElo "2446"]
[BlackElo "2258"]
[Result "1/2-1/2"]
[Round "06"]
[TimeControl "180+1"]
[Date "2022.12.21"]
[WhiteClock "0:01:01"]
[BlackClock "0:01:05"]

1. d4 {[%clk 0:02:29]}  Nf6 {[%clk 0:02:59]} 2. Nf3 {[%clk 0:02:28]}  d6 {[%clk 0:02:59]} 3. g3 {[%clk 0:02:29]}  g6 {[%clk 0:02:59]} 4. Bg2 {[%clk 0:02:29]}  Bg7 {[%clk 0:02:59]} 5. Nc3 {[%clk 0:02:30]}  O-O {[%clk 0:02:57]} 6. e4 {[%clk 0:02:30]}  c5 {[%clk 0:02:57]} 7. dxc5 {[%clk 0:02:30]}  dxc5 {[%clk 0:02:58]} 8. Qxd8 {[%clk 0:02:29]}  Rxd8 {[%clk 0:02:59]} 9. O-O {[%clk 0:02:29]}  Nc6 {[%clk 0:02:59]} 10. Be3 {[%clk 0:02:28]}  Nd4 {[%clk 0:02:55]} 11. Rad1 {[%clk 0:02:24]}  Bg4 {[%clk 0:02:49]} 12. Bxd4 {[%clk 0:02:20]}  Bxf3 {[%clk 0:02:42]} 13. Bxf6 {[%clk 0:02:01]}  Bxd1 {[%clk 0:02:39]} 14. Bxg7 {[%clk 0:02:00]}  Kxg7 {[%clk 0:02:33]} 15. Rxd1 {[%clk 0:01:58]}  Rxd1+ {[%clk 0:02:33]} 16. Nxd1 {[%clk 0:01:59]}  Rd8 {[%clk 0:02:34]} 17. Ne3 {[%clk 0:01:55]}  Rd2 {[%clk 0:02:32]} 18. Kf1 {[%clk 0:01:53]}  b6 {[%clk 0:02:32]} 19. Ke1 {[%clk 0:01:53]}  Rd8 {[%clk 0:02:32]} 20. f4 {[%clk 0:01:51]}  e6 {[%clk 0:02:28]} 21. Bf1 {[%clk 0:01:50]}  Rd4 {[%clk 0:02:25]} 22. Bd3 {[%clk 0:01:49]}  a6 {[%clk 0:02:16]} 23. Ke2 {[%clk 0:01:46]}  b5 {[%clk 0:02:15]} 24. c3 {[%clk 0:01:46]}  Rd8 {[%clk 0:02:13]} 25. e5 {[%clk 0:01:46]}  f6 {[%clk 0:02:10]} 26. exf6+ {[%clk 0:01:45]}  Kxf6 {[%clk 0:02:11]} 27. Ng4+ {[%clk 0:01:45]}  Ke7 {[%clk 0:02:10]} 28. Ne5 {[%clk 0:01:46]}  Rd6 {[%clk 0:01:55]} 29. h4 {[%clk 0:01:46]}  b4 {[%clk 0:01:51]} 30. h5 {[%clk 0:01:36]}  gxh5 {[%clk 0:01:45]} 31. Bxh7 {[%clk 0:01:35]}  bxc3 {[%clk 0:01:45]} 32. bxc3 {[%clk 0:01:34]}  Rb6 {[%clk 0:01:45]} 33. Nc4 {[%clk 0:01:30]}  Rb8 {[%clk 0:01:45]} 34. Bg6 {[%clk 0:01:28]}  Rg8 {[%clk 0:01:44]} 35. Ne5 {[%clk 0:01:28]}  Kf6 {[%clk 0:01:40]} 36. Kd3 {[%clk 0:01:02]}  Rxg6 {[%clk 0:01:35]} 37. Nxg6 {[%clk 0:01:02]}  Kxg6 {[%clk 0:01:36]} 38. Kc4 {[%clk 0:01:02]}  Kf5 {[%clk 0:01:36]} 39. Kxc5 {[%clk 0:01:03]}  Kg4 {[%clk 0:01:37]} 40. Kd6 {[%clk 0:01:03]}  Kxg3 {[%clk 0:01:37]} 41. c4 {[%clk 0:01:02]}  h4 {[%clk 0:01:37]} 42. c5 {[%clk 0:01:03]}  h3 {[%clk 0:01:38]} 43. c6 {[%clk 0:01:03]}  h2 {[%clk 0:01:39]} 44. c7 {[%clk 0:01:04]}  h1=Q {[%clk 0:01:39]} 45. c8=Q {[%clk 0:01:05]}  Qd5+ {[%clk 0:01:39]} 46. Ke7 {[%clk 0:01:04]}  Kxf4 {[%clk 0:01:17]} 47. Qxe6 {[%clk 0:01:01]}  Qxe6+ {[%clk 0:01:04]} 48. Kxe6 {[%clk 0:01:02]}  Ke4 {[%clk 0:01:04]} 49. Kd6 {[%clk 0:01:02]}  Kd4 {[%clk 0:01:05]} 50. Kc6 {[%clk 0:01:02]}  Kc4 {[%clk 0:01:05]} 51. Kb6 {[%clk 0:01:02]}  Kb4 {[%clk 0:01:06]} 52. Kxa6 {[%clk 0:01:02]}  Ka4 {[%clk 0:01:06]} 53. a3 {[%clk 0:01:02]}  Kb3 {[%clk 0:01:05]} 54. a4 {[%clk 0:01:01]}  Kxa4 {[%clk 0:01:05]} 1/2-1/2


[Site "https://www.chess.com"]

[Event "Titled Tuesday Blitz December 20 Late 2022"]
[White "Denishev, Marat"]
[Black "Rustemov, Alexander"]
[WhiteFideId "24131563"]
[BlackFideId "4119002"]
[WhiteElo "2194"]
[BlackElo "2886"]
[Result "0-1"]
[Round "06"]
[TimeControl "180+1"]
[Date "2022.12.20"]
[WhiteClock "0:00:02"]
[BlackClock "0:00:22"]

1. d4 {[%clk 0:03:00]}  g6 {[%clk 0:02:59]} 2. e4 {[%clk 0:02:57]}  Bg7 {[%clk 0:03:00]} 3. Nc3 {[%clk 0:02:58]}  d6 {[%clk 0:03:00]} 4. Be3 {[%clk 0:02:58]}  a6 {[%clk 0:02:57]} 5. Qd2 {[%clk 0:02:57]}  b5 {[%clk 0:02:56]} 6. h4 {[%clk 0:02:57]}  h6 {[%clk 0:02:55]} 7. h5 {[%clk 0:02:55]}  g5 {[%clk 0:02:55]} 8. f4 {[%clk 0:02:55]}  gxf4 {[%clk 0:02:53]} 9. Bxf4 {[%clk 0:02:55]}  Bb7 {[%clk 0:02:50]} 10. Qe3 {[%clk 0:02:41]}  Nd7 {[%clk 0:02:33]} 11. O-O-O {[%clk 0:02:34]}  b4 {[%clk 0:02:10]} 12. Na4 {[%clk 0:02:22]}  Ngf6 {[%clk 0:02:07]} 13. Bd3 {[%clk 0:02:11]}  Bc6 {[%clk 0:02:06]} 14. e5 {[%clk 0:01:45]}  Nd5 {[%clk 0:02:01]} 15. Qg3 {[%clk 0:01:43]}  Kf8 {[%clk 0:01:40]} 16. Be4 {[%clk 0:01:26]}  Rg8 {[%clk 0:01:23]} 17. Bh7 {[%clk 0:01:15]}  Nxf4 {[%clk 0:01:15]} 18. Bxg8 {[%clk 0:01:14]}  Kxg8 {[%clk 0:01:11]} 19. Qxf4 {[%clk 0:01:10]}  Bxa4 {[%clk 0:01:10]} 20. Nf3 {[%clk 0:01:10]}  Bc6 {[%clk 0:01:08]} 21. g4 {[%clk 0:01:02]}  e6 {[%clk 0:01:04]} 22. Rhf1 {[%clk 0:00:17]}  Bxf3 {[%clk 0:00:59]} 23. Qxf3 {[%clk 0:00:18]}  Qg5+ {[%clk 0:00:56]} 24. Kb1 {[%clk 0:00:18]}  Rf8 {[%clk 0:00:57]} 25. Qc6 {[%clk 0:00:17]}  Qe7 {[%clk 0:00:46]} 26. Qxc7 {[%clk 0:00:15]}  d5 {[%clk 0:00:38]} 27. g5 {[%clk 0:00:16]}  hxg5 {[%clk 0:00:38]} 28. h6 {[%clk 0:00:10]}  Bxh6 {[%clk 0:00:37]} 29. Rh1 {[%clk 0:00:11]}  Kg7 {[%clk 0:00:37]} 30. Rdf1 {[%clk 0:00:10]}  Qd8 {[%clk 0:00:34]} 31. Qb7 {[%clk 0:00:06]}  a5 {[%clk 0:00:31]} 32. Qb5 {[%clk 0:00:02]}  f5 {[%clk 0:00:26]} 33. exf6+ {[%clk 0:00:02]}  Rxf6 {[%clk 0:00:22]} 0-1


[Site "https://www.chess.com"]

[Event "Titled Tuesday Blitz December 20 Late 2022"]
[White "Dias, Joao Batista"]
[Black "Herman, Daniel"]
[WhiteFideId "2108240"]
[BlackFideId "30935008"]
[WhiteElo "1898"]
[BlackElo "1897"]
[Result "1-0"]
[Round "06"]
[TimeControl "180+1"]
[Date "2022.12.21"]
[WhiteClock "0:00:23"]
[BlackClock "0:00:01"]

1. e4 {[%clk 0:03:00]}  Nf6 {[%clk 0:02:59]} 2. Nc3 {[%clk 0:03:00]}  d5 {[%clk 0:02:58]} 3. exd5 {[%clk 0:03:00]}  Nxd5 {[%clk 0:02:59]} 4. Nxd5 {[%clk 0:03:00]}  Qxd5 {[%clk 0:02:59]} 5. Qf3 {[%clk 0:03:01]}  Qe6+ {[%clk 0:02:43]} 6. Be2 {[%clk 0:02:58]}  Nc6 {[%clk 0:02:43]} 7. c3 {[%clk 0:02:56]}  Qd6 {[%clk 0:02:28]} 8. d4 {[%clk 0:02:55]}  e5 {[%clk 0:02:28]} 9. d5 {[%clk 0:02:50]}  Ne7 {[%clk 0:02:26]} 10. c4 {[%clk 0:02:45]}  g6 {[%clk 0:02:18]} 11. Nh3 {[%clk 0:02:44]}  Bg7 {[%clk 0:02:17]} 12. O-O {[%clk 0:02:43]}  O-O {[%clk 0:02:15]} 13. Ng5 {[%clk 0:02:32]}  f5 {[%clk 0:02:10]} 14. Qb3 {[%clk 0:02:08]}  b6 {[%clk 0:02:05]} 15. f4 {[%clk 0:02:06]}  e4 {[%clk 0:02:00]} 16. Bd2 {[%clk 0:02:04]}  h6 {[%clk 0:01:56]} 17. Nh3 {[%clk 0:02:02]}  a5 {[%clk 0:01:48]} 18. Bc3 {[%clk 0:02:01]}  a4 {[%clk 0:01:46]} 19. Qc2 {[%clk 0:02:00]}  a3 {[%clk 0:01:43]} 20. b3 {[%clk 0:01:59]}  Bd7 {[%clk 0:01:29]} 21. Bxg7 {[%clk 0:01:58]}  Kxg7 {[%clk 0:01:30]} 22. Qc3+ {[%clk 0:01:58]}  Qf6 {[%clk 0:01:29]} 23. Qe5 {[%clk 0:01:53]}  Nc8 {[%clk 0:01:23]} 24. Qxc7 {[%clk 0:01:52]}  Ra7 {[%clk 0:01:04]} 25. Qe5 {[%clk 0:01:51]}  Re8 {[%clk 0:01:02]} 26. Qxf6+ {[%clk 0:01:46]}  Kxf6 {[%clk 0:01:03]} 27. Nf2 {[%clk 0:01:26]}  g5 {[%clk 0:01:00]} 28. g3 {[%clk 0:01:25]}  gxf4 {[%clk 0:00:59]} 29. gxf4 {[%clk 0:01:25]}  Nd6 {[%clk 0:00:52]} 30. Nd1 {[%clk 0:01:12]}  e3 {[%clk 0:00:49]} 31. Nc3 {[%clk 0:01:11]}  Bc8 {[%clk 0:00:33]} 32. Rf3 {[%clk 0:01:10]}  Rg7+ {[%clk 0:00:30]} 33. Kh1 {[%clk 0:01:04]}  Bb7 {[%clk 0:00:29]} 34. Rg1 {[%clk 0:01:02]}  Rxg1+ {[%clk 0:00:24]} 35. Kxg1 {[%clk 0:01:02]}  Bc8 {[%clk 0:00:16]} 36. Nd1 {[%clk 0:00:58]}  Ne4 {[%clk 0:00:14]} 37. Rxe3 {[%clk 0:00:56]}  Rg8+ {[%clk 0:00:15]} 38. Kf1 {[%clk 0:00:54]}  b5 {[%clk 0:00:15]} 39. Nf2 {[%clk 0:00:46]}  Nc5 {[%clk 0:00:14]} 40. Bf3 {[%clk 0:00:40]}  b4 {[%clk 0:00:12]} 41. Nd3 {[%clk 0:00:37]}  Nxd3 {[%clk 0:00:11]} 42. Rxd3 {[%clk 0:00:37]}  Bd7 {[%clk 0:00:11]} 43. Re3 {[%clk 0:00:37]}  Rc8 {[%clk 0:00:11]} 44. Kf2 {[%clk 0:00:36]}  Rc7 {[%clk 0:00:10]} 45. Bh5 {[%clk 0:00:35]}  Rc8 {[%clk 0:00:10]} 46. Rg3 {[%clk 0:00:34]}  Be8 {[%clk 0:00:07]} 47. Rg8 {[%clk 0:00:26]}  Bd7 {[%clk 0:00:02]} 48. Rg6+ {[%clk 0:00:25]}  Ke7 {[%clk 0:00:01]} 49. Rxh6 {[%clk 0:00:23]} 1-0


[Site "https://www.chess.com"]

[Event "Titled Tuesday Blitz December 20 Late 2022"]
[White "Fiorito, Francisco"]
[Black "Muhammad, Shahzeb"]
[WhiteFideId "180165"]
[BlackFideId "7804806"]
[WhiteElo "2348"]
[BlackElo "2401"]
[Result "1-0"]
[Round "06"]
[TimeControl "180+1"]
[Date "2022.12.21"]
[WhiteClock "0:00:19"]
[BlackClock "0:00:01"]

1. e4 {[%clk 0:03:00]}  d5 {[%clk 0:02:48]} 2. exd5 {[%clk 0:03:00]}  Nf6 {[%clk 0:02:48]} 3. Bb5+ {[%clk 0:02:53]}  Nbd7 {[%clk 0:02:45]} 4. d4 {[%clk 0:02:50]}  a6 {[%clk 0:02:44]} 5. Be2 {[%clk 0:02:49]}  Nxd5 {[%clk 0:02:44]} 6. c4 {[%clk 0:02:49]}  N5f6 {[%clk 0:02:43]} 7. Nc3 {[%clk 0:02:48]}  e5 {[%clk 0:02:43]} 8. dxe5 {[%clk 0:02:44]}  Nxe5 {[%clk 0:02:43]} 9. Qxd8+ {[%clk 0:02:45]}  Kxd8 {[%clk 0:02:43]} 10. Bg5 {[%clk 0:02:44]}  Bd6 {[%clk 0:02:35]} 11. Ne4 {[%clk 0:02:39]}  Be7 {[%clk 0:02:29]} 12. Nxf6 {[%clk 0:02:37]}  gxf6 {[%clk 0:02:26]} 13. O-O-O+ {[%clk 0:02:38]}  Bd7 {[%clk 0:02:26]} 14. Be3 {[%clk 0:02:37]}  Rg8 {[%clk 0:02:21]} 15. g3 {[%clk 0:02:35]}  Kc8 {[%clk 0:02:20]} 16. h3 {[%clk 0:02:27]}  Bc6 {[%clk 0:02:04]} 17. Rh2 {[%clk 0:02:26]}  b6 {[%clk 0:01:59]} 18. f4 {[%clk 0:02:21]}  Nd7 {[%clk 0:01:49]} 19. g4 {[%clk 0:02:09]}  Bd6 {[%clk 0:01:42]} 20. Nf3 {[%clk 0:02:07]}  Re8 {[%clk 0:01:40]} 21. Kd2 {[%clk 0:01:54]}  Nc5 {[%clk 0:01:21]} 22. Nd4 {[%clk 0:01:50]}  Ne4+ {[%clk 0:01:04]} 23. Kc1 {[%clk 0:01:25]}  Ng3 {[%clk 0:00:55]} 24. Bd2 {[%clk 0:01:13]}  Bc5 {[%clk 0:00:21]} 25. Nxc6 {[%clk 0:00:40]}  Nxe2+ {[%clk 0:00:17]} 26. Kc2 {[%clk 0:00:38]}  Kb7 {[%clk 0:00:17]} 27. Re1 {[%clk 0:00:38]}  Ng3 {[%clk 0:00:10]} 28. Nb4 {[%clk 0:00:36]}  Ne4 {[%clk 0:00:08]} 29. Nd3 {[%clk 0:00:33]}  Nxd2 {[%clk 0:00:07]} 30. Kxd2 {[%clk 0:00:32]}  Bd6 {[%clk 0:00:05]} 31. Rhe2 {[%clk 0:00:31]}  Red8 {[%clk 0:00:05]} 32. Kc2 {[%clk 0:00:30]}  Kc6 {[%clk 0:00:05]} 33. Re4 {[%clk 0:00:27]}  a5 {[%clk 0:00:05]} 34. a4 {[%clk 0:00:26]}  Rh8 {[%clk 0:00:04]} 35. h4 {[%clk 0:00:18]}  h5 {[%clk 0:00:03]} 36. g5 {[%clk 0:00:19]}  fxg5 {[%clk 0:00:03]} 37. fxg5 {[%clk 0:00:20]}  Rhf8 {[%clk 0:00:02]} 38. Rf1 {[%clk 0:00:19]}  Rad8 {[%clk 0:00:01]} 39. Rf6 {[%clk 0:00:19]} 1-0


[Site "https://www.chess.com"]

[Event "Titled Tuesday Blitz December 20 Late 2022"]
[White "Floresvillar Gonzalez, Luis Migu"]
[Black "Shapiro, Bryan"]
[WhiteFideId "5100542"]
[BlackFideId "2087740"]
[WhiteElo "2040"]
[BlackElo "1909"]
[Result "1-0"]
[Round "06"]
[TimeControl "180+1"]
[Date "2022.12.21"]
[WhiteClock "0:01:26"]
[BlackClock "0:01:58"]

1. d4 {[%clk 0:02:59]}  Nf6 {[%clk 0:03:00]} 2. c3 {[%clk 0:02:58]}  e6 {[%clk 0:03:00]} 3. Bg5 {[%clk 0:02:57]}  b6 {[%clk 0:02:59]} 4. Nd2 {[%clk 0:02:57]}  Bb7 {[%clk 0:03:00]} 5. Qc2 {[%clk 0:02:56]}  h6 {[%clk 0:02:59]} 6. Bh4 {[%clk 0:02:55]}  Be7 {[%clk 0:02:59]} 7. e4 {[%clk 0:02:54]}  d6 {[%clk 0:02:56]} 8. f4 {[%clk 0:02:54]}  Nbd7 {[%clk 0:02:56]} 9. Bxf6 {[%clk 0:02:53]}  Nxf6 {[%clk 0:02:54]} 10. O-O-O {[%clk 0:02:51]}  O-O {[%clk 0:02:54]} 11. e5 {[%clk 0:02:50]}  Ng4 {[%clk 0:02:53]} 12. Ndf3 {[%clk 0:02:39]}  Ne3 {[%clk 0:02:53]} 13. Qd2 {[%clk 0:02:27]}  Nxd1 {[%clk 0:02:53]} 14. Qxd1 {[%clk 0:02:27]}  dxe5 {[%clk 0:02:54]} 15. fxe5 {[%clk 0:02:26]}  Bg5+ {[%clk 0:02:52]} 16. Kb1 {[%clk 0:02:25]}  Be4+ {[%clk 0:02:52]} 17. Ka1 {[%clk 0:02:24]}  a5 {[%clk 0:02:49]} 18. Qe1 {[%clk 0:02:15]}  Bg6 {[%clk 0:02:48]} 19. h4 {[%clk 0:02:14]}  Be7 {[%clk 0:02:46]} 20. h5 {[%clk 0:02:14]}  Bh7 {[%clk 0:02:47]} 21. g4 {[%clk 0:02:06]}  a4 {[%clk 0:02:47]} 22. a3 {[%clk 0:02:05]}  Qd5 {[%clk 0:02:44]} 23. Bg2 {[%clk 0:02:04]}  Qb3 {[%clk 0:02:44]} 24. Nd2 {[%clk 0:01:52]}  Qc2 {[%clk 0:02:41]} 25. Bxa8 {[%clk 0:01:51]}  Rxa8 {[%clk 0:02:37]} 26. Nb1 {[%clk 0:01:45]}  Ra5 {[%clk 0:02:34]} 27. Nf3 {[%clk 0:01:38]}  Rb5 {[%clk 0:02:34]} 28. Qc1 {[%clk 0:01:34]}  Qb3 {[%clk 0:02:18]} 29. Nfd2 {[%clk 0:01:33]}  Qd5 {[%clk 0:02:18]} 30. c4 {[%clk 0:01:31]}  Qxd4 {[%clk 0:02:15]} 31. cxb5 {[%clk 0:01:31]}  Qxe5 {[%clk 0:02:05]} 32. Qc3 {[%clk 0:01:30]}  Qf4 {[%clk 0:02:02]} 33. Rf1 {[%clk 0:01:29]}  Qxg4 {[%clk 0:02:02]} 34. Qxc7 {[%clk 0:01:27]}  Bf8 {[%clk 0:01:58]} 35. Qxf7+ {[%clk 0:01:26]} 1-0


[Site "https://www.chess.com"]

[Event "Titled Tuesday Blitz December 20 Late 2022"]
[White "Forgacs, Attila Jr."]
[Black "gshwbedhkhd"]
[WhiteFideId "773654"]
[WhiteElo "2168"]
[BlackElo "2574"]
[Result "0-1"]
[Round "06"]
[TimeControl "180+1"]
[Date "2022.12.21"]
[WhiteClock "0:00:06"]
[BlackClock "0:00:41"]

1. e4 {[%clk 0:03:00]}  c5 {[%clk 0:02:59]} 2. d3 {[%clk 0:03:00]}  Nc6 {[%clk 0:02:56]} 3. g3 {[%clk 0:03:01]}  d5 {[%clk 0:02:53]} 4. Nd2 {[%clk 0:02:59]}  Nf6 {[%clk 0:02:49]} 5. Ngf3 {[%clk 0:02:57]}  g6 {[%clk 0:02:39]} 6. Bg2 {[%clk 0:02:57]}  Bg7 {[%clk 0:02:39]} 7. O-O {[%clk 0:02:56]}  O-O {[%clk 0:02:40]} 8. Re1 {[%clk 0:02:53]}  b6 {[%clk 0:02:33]} 9. a3 {[%clk 0:02:51]}  Bb7 {[%clk 0:02:32]} 10. Rb1 {[%clk 0:02:51]}  a5 {[%clk 0:02:30]} 11. exd5 {[%clk 0:02:45]}  Nxd5 {[%clk 0:02:29]} 12. Ne4 {[%clk 0:02:45]}  h6 {[%clk 0:02:26]} 13. Nfd2 {[%clk 0:02:23]}  f5 {[%clk 0:02:13]} 14. c4 {[%clk 0:02:12]}  Nc7 {[%clk 0:01:59]} 15. Nc3 {[%clk 0:02:07]}  Qxd3 {[%clk 0:01:57]} 16. Nd5 {[%clk 0:02:06]}  Nxd5 {[%clk 0:01:47]} 17. Bxd5+ {[%clk 0:02:06]}  Kh7 {[%clk 0:01:45]} 18. Re3 {[%clk 0:01:41]}  Qd4 {[%clk 0:01:40]} 19. b3 {[%clk 0:01:41]}  f4 {[%clk 0:01:15]} 20. Re4 {[%clk 0:00:37]}  Qd3 {[%clk 0:01:06]} 21. b4 {[%clk 0:00:37]}  fxg3 {[%clk 0:01:03]} 22. hxg3 {[%clk 0:00:33]}  Bd4 {[%clk 0:00:53]} 23. Re2 {[%clk 0:00:08]}  Qxg3+ {[%clk 0:00:51]} 24. Kf1 {[%clk 0:00:08]}  Rxf2+ {[%clk 0:00:49]} 25. Ke1 {[%clk 0:00:07]}  Qg1+ {[%clk 0:00:49]} 26. Nf1 {[%clk 0:00:07]}  Qxf1+ {[%clk 0:00:50]} 27. Kd2 {[%clk 0:00:07]}  Bc3+ {[%clk 0:00:44]} 28. Kxc3 {[%clk 0:00:07]}  Qxd1 {[%clk 0:00:44]} 29. Bxc6 {[%clk 0:00:07]}  Rxe2 {[%clk 0:00:41]} 30. Bxh6 {[%clk 0:00:06]}  Qc2# {[%clk 0:00:41]} 0-1


[Site "https://www.chess.com"]

[Event "Titled Tuesday Blitz December 20 Late 2022"]
[White "Gerbelli Neto, Eduardo"]
[Black "Zeman, Matyas"]
[WhiteFideId "2103281"]
[BlackFideId "364398"]
[WhiteElo "2178"]
[BlackElo "2254"]
[Result "1-0"]
[Round "06"]
[TimeControl "180+1"]
[Date "2022.12.21"]
[WhiteClock "0:00:26"]
[BlackClock "0:00:04"]

1. e4 {[%clk 0:03:00]}  c6 {[%clk 0:02:56]} 2. d4 {[%clk 0:03:00]}  d5 {[%clk 0:02:57]} 3. exd5 {[%clk 0:03:01]}  cxd5 {[%clk 0:02:57]} 4. c4 {[%clk 0:03:01]}  Nf6 {[%clk 0:02:53]} 5. Nc3 {[%clk 0:03:02]}  Be6 {[%clk 0:02:53]} 6. c5 {[%clk 0:02:46]}  Nc6 {[%clk 0:02:48]} 7. Nf3 {[%clk 0:02:45]}  g6 {[%clk 0:02:42]} 8. Bb5 {[%clk 0:02:42]}  Bg7 {[%clk 0:02:42]} 9. Ne5 {[%clk 0:02:39]}  Bd7 {[%clk 0:02:40]} 10. Bxc6 {[%clk 0:02:34]}  bxc6 {[%clk 0:02:40]} 11. O-O {[%clk 0:02:32]}  O-O {[%clk 0:02:40]} 12. Bf4 {[%clk 0:02:28]}  Nh5 {[%clk 0:02:39]} 13. Be3 {[%clk 0:02:22]}  Be8 {[%clk 0:01:26]} 14. f4 {[%clk 0:02:11]}  f6 {[%clk 0:01:23]} 15. Nf3 {[%clk 0:02:09]}  Bd7 {[%clk 0:01:20]} 16. Qd2 {[%clk 0:01:59]}  Bh6 {[%clk 0:01:15]} 17. Rfe1 {[%clk 0:01:37]}  Ng7 {[%clk 0:01:12]} 18. Nh4 {[%clk 0:01:22]}  e5 {[%clk 0:01:00]} 19. fxe5 {[%clk 0:01:13]}  Bxe3+ {[%clk 0:01:01]} 20. Qxe3 {[%clk 0:01:13]}  fxe5 {[%clk 0:01:01]} 21. Nf3 {[%clk 0:01:09]}  e4 {[%clk 0:00:59]} 22. Ne5 {[%clk 0:01:05]}  Nf5 {[%clk 0:00:52]} 23. Qd2 {[%clk 0:00:59]}  Rc8 {[%clk 0:00:51]} 24. Ne2 {[%clk 0:00:47]}  Be8 {[%clk 0:00:20]} 25. Rf1 {[%clk 0:00:42]}  Qe7 {[%clk 0:00:20]} 26. Ng3 {[%clk 0:00:37]}  Nxg3 {[%clk 0:00:14]} 27. Rxf8+ {[%clk 0:00:36]}  Qxf8 {[%clk 0:00:15]} 28. hxg3 {[%clk 0:00:37]}  Rb8 {[%clk 0:00:14]} 29. Rf1 {[%clk 0:00:35]}  Qe7 {[%clk 0:00:14]} 30. b3 {[%clk 0:00:30]}  Kg7 {[%clk 0:00:13]} 31. Qf4 {[%clk 0:00:28]}  Rb7 {[%clk 0:00:11]} 32. Ng4 {[%clk 0:00:28]}  Bd7 {[%clk 0:00:10]} 33. Qh6+ {[%clk 0:00:27]}  Kg8 {[%clk 0:00:08]} 34. Nf6+ {[%clk 0:00:27]}  Kf7 {[%clk 0:00:04]} 35. Nxd5+ {[%clk 0:00:26]} 1-0


[Site "https://www.chess.com"]